Cogmind - Beta 12 @@@ ROGUE MODE // 2023.11.08 @ 02:23:20 Player: Blaj Result: Destroyed by Lightning with EMDS Performance ------------- Evolutions (4) 2000 Regions Visited (17) 3400 Robots Destroyed (286) 1430 Value Destroyed (10022) 10022 Prototype IDs (22) 440 Alien Tech Used (0) 0 Bonus (2968) 2968 TOTAL SCORE: 20260 Bonus ------- High Alert Combat Kills 364 Follower Combat Kills 1735 Network Hubs Disabled 400 Met Imprinter 300 A7 Reached Mainframe 300 Met R17 at Cetus 500 Friendly Fire -631 Cogmind --------- Core Integrity 0/850 Matter 300/300 Energy 100/100 System Corruption 14% Temperature Cool (21) Movement Core (750) Ox14 Location -6/Hub_04(d) Parts ------- > --- POWER (1) -------- (None) > --- PROPULSION (5) --- (None) > --- UTILITY (7) ------ High-capacity Storage Unit Advanced Melee Analysis Suite Core Analyzer > --- WEAPON (2) ------- Makeshift Hammer > --- INVENTORY (20) --- Quantum Reactor Quantum Reactor Energy Well (350) Seismic Detector Force Booster Transmission Jammer Improved Heavy Armor Plating Centrium Medium Armor Plating Centrium Medium Armor Plating Centrium Medium Armor Plating Force Field Improved Hacking Suite Improved System Shield Phase Cannon Scatter Rocket Array Scatter Rocket Array Phasing Sabre CR-A16's Behemoth Slayer Peak State ------------ > --- POWER ------------ Quantum Reactor > --- PROPULSION ------- Flexi-carbon Leg Flexi-carbon Leg Flexi-carbon Leg Flexi-carbon Leg Armored Leg > --- UTILITY ---------- High-capacity Storage Unit Advanced Melee Analysis Suite Microactuators Centrium Medium Armor Plating Improved Hacking Suite Improved Hacking Suite Improved System Shield > --- WEAPON ----------- Phasing Sabre CR-A16's Behemoth Slayer > --- INVENTORY -------- Quantum Reactor Flexi-carbon Leg Flexi-carbon Leg Energy Well Seismic Detector Core Analyzer Transmission Jammer Improved Heavy Armor Plating Centrium Medium Armor Plating Centrium Medium Armor Plating Centrium Medium Armor Plating Force Field Improved Hacking Suite Improved System Shield Phase Cannon Scatter Rocket Array Scatter Rocket Array Plasma Cutter Makeshift Hammer [Rating: 93] Favorites ----------- Power Reinforced Deuterium Engine Engine Reinforced Deuterium Engine Power Core Micro Nuclear Core Reactor Quantum Reactor Propulsion Improved Titanium Leg Leg Improved Titanium Leg Utility High-capacity Storage Unit Device Seismic Detector Storage High-capacity Storage Unit Processor Improved Melee Analysis Suite Hackware Hacking Suite Protection Improved Heavy Armor Plating Weapon Great Maul Energy Gun Medium Laser Energy Cannon Advanced Beam Cannon Ballistic Gun Improved Assault Rifle Ballistic Cannon Light Cannon Launcher Grenade Launcher Special Weapon Plasma Cutter Impact Weapon Great Maul Slashing Weapon Scythe Piercing Weapon CR-A16's Behemoth Slayer Build | -11 -10 -10 -9 -9 -8 -7 -7 -7 -7 -7 -7 -6 -6 -6 -6 -6 -6 ------- Run | Jun Mat Min Mat Sto Mat Fac Was Fac Low Low Zio Pro Fac Ext Cet Arc Hub Slots Evolved 8 | . . . 2 . 2 2 . . . . . . 2 . . . . Power . | . . . . . . . . . . . . . . . . . . Propulsion 3 | . . . 1 . 1 1 . . . . . . . . . . . Utility 5 | . . . 1 . 1 1 . . . . . . 2 . . . . Weapon . | . . . . . . . . . . . . . . . . . . Parts Attached 469 | 1 12 6 59 29 66 55 3 49 2 6 7 10 69 42 14 19 20 Power 19 | . 1 2 4 4 1 2 . 2 . . . 1 . . 1 1 . Engine 16 | . 1 2 4 4 1 2 . 1 . . . 1 . . . . . Core 1 | . . . . . . . . 1 . . . . . . . . . Reactor 2 | . . . . . . . . . . . . . . . 1 1 . Propulsion 62 | . 3 2 12 5 8 4 . 4 . . . 1 6 8 5 1 3 Treads . | . . . . . . . . . . . . . . . . . . Leg 62 | . 3 2 12 5 8 4 . 4 . . . 1 6 8 5 1 3 Wheel . | . . . . . . . . . . . . . . . . . . Hover . | . . . . . . . . . . . . . . . . . . Flight . | . . . . . . . . . . . . . . . . . . Utility 297 | 1 3 . 27 18 41 44 . 39 1 . 5 4 53 28 8 12 13 Device 202 | 1 1 . 13 11 21 28 . 28 1 . 4 2 46 25 5 9 7 Storage 5 | . 2 . 2 . . 1 . . . . . . . . . . . Processor 9 | . . . 1 . . 1 . . . . 1 . 2 . 1 1 2 Hackware 11 | . . . . . . 2 . 2 . . . 1 3 . . . 3 Protection 70 | . . . 11 7 20 12 . 9 . . . 1 2 3 2 2 1 Artifact . | . . . . . . . . . . . . . . . . . . Weapon 91 | . 5 2 16 2 16 5 3 4 1 6 2 4 10 6 . 5 4 Energy Gun 1 | . . 1 . . . . . . . . . . . . . . . Energy Cannon 7 | . . . 3 . . . . . . . . . 4 . . . . Ballistic Gun 6 | . 1 . 4 . . . . . . . . . . . . 1 . Ballistic Cannon 5 | . . 1 3 . . . . . . . . . 1 . . . . Launcher 18 | . 2 . 1 . 4 2 2 . . 3 . 1 2 . . . 1 Special Weapon 11 | . . . 3 1 3 . . 1 . . . . . 1 . 2 . Impact Weapon 17 | . . . 2 1 4 . . 2 1 1 1 2 . 1 . 1 1 Slashing Weapon 23 | . 2 . . . 5 3 1 1 . 2 1 . 3 3 . 1 1 Piercing Weapon 3 | . . . . . . . . . . . . 1 . 1 . . 1 Special Melee Weapon . | . . . . . . . . . . . . . . . . . . Unidentified Prototypes 9 | . . . 3 1 . . . . . . 1 . 2 . 1 . 1 Corrupted Parts 3 | . . . . . . . . . . . . 1 . . 1 1 . System Corruption 12 | . . . . . . . . . . . . 3 . . 5 4 . Parts Lost 49 | . 5 4 7 3 10 1 . 2 . . . 1 5 . 1 . 10 Power 8 | . 2 1 2 1 1 . . 1 . . . . . . . . . Propulsion 20 | . 2 2 1 1 1 . . . . . . 1 4 . 1 . 7 Utility 15 | . . . 2 1 8 . . . . . . . 1 . . . 3 Weapon 6 | . 1 1 2 . . 1 . 1 . . . . . . . . . Highest Loss Streak 10 | . 4 3 3 2 2 1 . 1 . . . 1 3 . 1 . 10 To Critical Strikes 1 | . . . . . . . . . . . . . 1 . . . . Average Slot Usage (%) 94 | . 83 94 98 99 99 94 99 92 92 92 92 92 92 92 98 98 98 Engine 6 | . 5 9 10 11 9 7 7 6 . . . 1 6 6 4 . . Leg 34 | . 27 28 32 32 36 38 38 37 38 38 38 38 32 33 33 33 32 Device 9 | . 14 14 10 8 6 10 7 7 7 7 7 7 12 13 13 14 6 Storage 8 | . 14 14 11 11 9 7 7 7 7 7 7 7 6 6 6 6 6 Processor 3 | . . . . . . . . . . . 6 7 9 13 13 13 8 Hackware 2 | . . . . . . 8 15 7 7 7 . . 4 . . . 15 Protection 8 | . . . 9 13 20 9 7 7 7 7 7 7 6 5 11 9 7 Ballistic Gun 1 | . 5 . 7 . . . . . . . . . . . . 3 . Impact Weapon 6 | . . . 5 21 11 1 . 6 7 6 7 6 6 5 6 2 5 Slashing Weapon 5 | . 10 14 1 . 5 6 . 7 7 6 7 7 4 5 6 1 5 Naked Turns . | . . . . . . . . . . . . . . . . . . Heaviest Build 91 | 13 43 31 61 67 77 79 73 73 67 76 68 83 90 88 91 91 89 Greatest Support 97 | 20 20 20 51 51 80 97 93 95 95 75 75 95 95 91 96 96 96 Greatest Overweight (x) 2 | . 2 1 1 1 1 1 . . . 1 . 1 1 1 1 . . Average Overweight (x) . | . . 1 1 1 . . . . . . . . . . . . . Largest Inventory Capacity 20 | 8 20 15 20 20 20 20 20 20 20 20 20 20 20 20 20 20 20 Average Capacity 19 | 8 13 15 19 20 20 20 20 20 20 20 20 20 20 20 20 20 20 Most Carried 20 | 6 13 14 20 20 20 20 20 20 20 20 20 20 20 20 20 20 20 Average Carried 17 | 6 8 13 15 18 18 19 19 19 20 20 19 19 19 19 19 17 19 Final Capacity 20 | 8 15 15 20 20 20 20 20 20 20 20 20 20 20 20 20 20 20 Final Carried 20 | 6 13 12 20 20 18 20 20 20 20 20 20 19 20 20 20 20 19 Class Distribution -------------------- 77% | Mutant 14% | Scavenger-Mutant 6% | Hacker-Mutant Dominant Class ---------------- Mutant | -10/Materials Mutant | -10/Mines Mutant | -9/Materials Mutant | -9/Storage Mutant | -8/Materials Hacker-Mutant | -7/Factory Hacker-Mutant | -7/Waste Mutant | -7/Factory Mutant | -7/Lower Caves Mutant | -7/Lower Caves Mutant | -7/Zion Mutant | -6/Proximity Caves Mutant | -6/Factory Scavenger-Mutant | -6/Extension Scavenger-Mutant | -6/Cetus Scavenger-Mutant | -6/Archives Scavenger-Mutant | -6/Hub_04(d) Resources | -11 -10 -10 -9 -9 -8 -7 -7 -7 -7 -7 -7 -6 -6 -6 -6 -6 -6 ----------- Run | Jun Mat Min Mat Sto Mat Fac Was Fac Low Low Zio Pro Fac Ext Cet Arc Hub Matter Collected 6550 | 218 168 106 884 280 700 593 328 700 37 57 266 213 592 723 146 344 195 Remotely . | . . . . . . . . . . . . . . . . . . Salvage Created 11961 | 110 618 194 1505 945 1597 981 1106 1404 . 95 . 148 1603 738 . 433 484 Parts 517 | 9 36 14 92 26 67 53 3 47 . 2 . 14 61 20 . 49 24 Haulers Intercepted 19 | . 2 . 6 3 . 2 . 2 . . . . 2 1 . . 1 Recyclers Shooed 4 | . . . 3 . . 1 . . . . . . . . . . . Parts Field Recycled . | . . . . . . . . . . . . . . . . . . Retrieved Matter . | . . . . . . . . . . . . . . . . . . Parts Self-Destructed 13 | . . . . . . . . . . 1 . 12 . . . . . Prevented . | . . . . . . . . . . . . . . . . . . Kills | -11 -10 -10 -9 -9 -8 -7 -7 -7 -7 -7 -7 -6 -6 -6 -6 -6 -6 ------- Run | Jun Mat Min Mat Sto Mat Fac Was Fac Low Low Zio Pro Fac Ext Cet Arc Hub Combat Hostiles Destroyed 216 | . 12 4 26 19 40 18 5 28 . 9 . 5 35 6 . 1 8 Melee 116 | . 10 2 5 9 23 12 . 22 . . . . 23 4 . 1 5 Guns 7 | . . . 7 . . . . . . . . . . . . . . Cannons 11 | . . 2 9 . . . . . . . . . . . . . . AOE 39 | . 2 . 3 . 7 5 5 . . 9 . 4 4 . . . . Classes Destroyed 18 | 2 5 2 3 . 2 1 1 1 . . . 1 . . . . . Worker 9 | . . 1 2 2 1 1 . 1 . . . . 1 . . . . Builder 3 | . . . 1 . . 1 . . . . . . 1 . . . . Tunneler 6 | 2 1 1 . 1 1 . . . . . . . . . . . . Hauler 19 | . 2 . 6 3 . 2 . 2 . . . . 2 1 . . 1 Recycler 9 | 1 2 . 1 . . 2 . 1 . . . . . 2 . . . Mechanic 2 | . 1 . . . . . . . . . . . . 1 . . . Operator 11 | . 2 . . . . . . . . . . . . . . 9 . Watcher 11 | . . . 4 2 2 1 . . . . . . 1 . . . 1 Swarmer 48 | . 6 . 3 . 8 7 . 4 . . . 4 13 . . . 3 Grunt 90 | . 6 2 12 14 20 5 . 14 . 3 . . 10 2 . . 2 Brawler 4 | . . . . . 1 . . . . 2 . . 1 . . . . Duelist 8 | . . . 1 . 1 1 . . . 3 . . 2 . . . . Protector 1 | . . . . . 1 . . . . . . . . . . . . Sentry 39 | . . 2 10 5 9 3 . 2 . 1 . . 2 3 . 1 1 Hunter 6 | . . . . . . . . 3 . . . . 3 . . . . Programmer 12 | . . . . . . 2 . 5 . . . . 4 . . . 1 Behemoth 3 | . . . . . . . . . . . . 1 . 1 . . 1 Compactor 5 | . . . . . . . 5 . . . . . . . . . . Best Kill Streak 9 | 2 4 2 4 2 3 5 4 5 . 9 . 4 7 2 . 2 3 Combat Bots Only 9 | . 2 2 3 2 3 4 4 4 . 9 . 4 6 2 . 1 3 Max Kills in Single Turn 3 | 1 3 1 2 1 2 2 2 1 . 3 . 3 3 1 . 1 1 Gunslinging . | . . . . . . . . . . . . . . . . . . Exploded 3 | . 1 . 2 . 2 2 2 . . 3 . 3 2 . . . . Melee 1 | . 1 1 1 1 1 1 . 1 . . . . 1 1 . 1 1 Uniques/NPCs Destroyed . | . . . . . . . . . . . . . . . . . . Combat | -11 -10 -10 -9 -9 -8 -7 -7 -7 -7 -7 -7 -6 -6 -6 -6 -6 -6 -------- Run | Jun Mat Min Mat Sto Mat Fac Was Fac Low Low Zio Pro Fac Ext Cet Arc Hub Damage Taken 14275 | . 580 357 1401 1058 2064 847 57 1618 . 166 . 498 1811 530 601 131 2556 Core 1894 | . 134 75 192 84 173 95 10 119 . 25 . 119 168 59 47 24 570 Absorbed by Shields 1693 | . . . 126 . 108 192 . 40 . . . . 519 410 121 84 93 Regen/Repaired (Parts) 1179 | . . . 105 135 300 . . 287 . . . . 108 244 . . . Core Remaining (%) 52 | 100 . 16 . 31 68 . . . . . . 47 . . . . . Volleys Fired 249 | 6 9 14 81 2 19 2 11 . . 7 . 2 19 16 . 61 . Largest 2 | 2 2 1 2 1 2 1 2 . . 2 . 1 1 1 . 2 . Hottest 168 | 70 70 35 168 100 100 36 78 . . 78 . 39 90 20 . 53 . Shots Fired 377 | 12 16 14 145 2 20 2 22 . . 13 . 2 22 16 . 91 . Gun 144 | 12 14 . 83 . . . . . . . . . . . . 35 . Cannon 85 | . . 14 51 . . . . . . . . . 20 . . . . Launcher 52 | . 2 . 2 . 7 2 22 . . 13 . 2 2 . . . . Special 96 | . . . 9 2 13 . . . . . . . . 16 . 56 . Kinetic 160 | 6 7 14 97 . . . . . . . . . 1 . . 35 . Thermal 165 | 6 7 . 46 2 13 . . . . . . . 19 16 . 56 . Explosive 52 | . 2 . 2 . 7 2 22 . . 13 . 2 2 . . . . Electromagnetic . | . . . . . . . . . . . . . . . . . . Robot Hit Streak 34 | 4 9 5 34 . 5 1 5 . . 3 . 2 1 1 . 5 . Robot Miss Streak 5 | 1 4 2 3 . . 1 2 . . 2 . . 2 5 . 4 . Penetration Max 1 | . . . . . . . . . . . . . . . . 1 . Secondary Targets . | . . . . . . . . . . . . . . . . . . Shots Hit Robots 697 | 7 40 18 130 60 101 49 13 67 . 7 . 5 81 28 15 55 21 Core Hits 281 | 4 22 6 42 7 30 21 12 22 . 25 . 4 35 11 4 30 6 Critical Kills 8 | . . . 1 3 2 1 . 1 . . . . . . . . . Critical Parts Destroyed 50 | . . . 4 13 12 2 . 8 . . . . 8 3 . . . Critical Strikes 79 | . . 1 5 16 19 5 . 15 . . . . 12 4 . 2 . Destroy 1 | . . . 1 . . . . . . . . . . . . . . Blast 1 | . . 1 . . . . . . . . . . . . . . . Smash 59 | . . . 4 16 16 3 . 9 . . . . 8 3 . . . Sever 18 | . . . . . 3 2 . 6 . . . . 4 1 . 2 . Melee Attacks 890 | . 66 8 44 114 143 88 . 133 . . 5 6 175 33 20 10 45 Impact 414 | . . . 26 114 77 16 . 46 . . 1 . 80 19 4 4 27 Slashing 470 | . 66 8 18 . 66 72 . 87 . . 4 2 95 13 16 6 17 Piercing 6 | . . . . . . . . . . . . 4 . 1 . . 1 Sneak Attacks 49 | . 5 3 3 8 5 8 . 6 . . . . 2 6 . 2 1 Combat Hostiles 3 | . 1 . . 1 . . . 1 . . . . . . . . . Follow-up Attacks 75 | . . . 5 6 16 6 . 9 . . . 1 16 6 4 1 5 Damage Inflicted 32292 | 91 1156 394 3185 3189 4870 3172 2582 3020 . 1521 . 426 4245 1425 581 1339 1096 Guns 1900 | 91 114 . 1107 . . . . . . . . . . . . 588 . Cannons 864 | . . 179 685 . . . . . . . . . . . . . . Explosions 6686 | . 157 . 207 . 874 269 2582 . . 1521 . 316 760 . . . . Melee 22199 | . 884 215 1089 3182 3993 2854 . 3020 . . . 110 3432 1302 581 445 1092 Ramming 164 | . 1 . 47 7 3 49 . . . . . . 53 . . . 4 Kinetic 2155 | 28 51 179 1309 . . . . . . . . . . . . 588 . Thermal 1088 | 63 63 . 533 . . . . . . . . . . 123 . 306 . Explosive 6686 | . 157 . 207 . 874 269 2582 . . 1521 . 316 760 . . . . Electromagnetic . | . . . . . . . . . . . . . . . . . . Impact 11881 | . . . 797 3182 2380 638 . 1669 . . . . 1672 726 92 37 688 Slashing 10245 | . 884 215 292 . 1613 2216 . 1351 . . . 37 1760 576 489 408 404 Piercing 73 | . . . . . . . . . . . . 73 . . . . . Highest Corruption 26 | . . . . 1 . 2 19 19 13 13 13 3 21 21 26 26 12 Average Corruption 12 | . . . . 1 . 1 11 11 13 13 13 3 17 21 25 18 5 Corruption Purged 40 | . . . . . . . . 10 . . . . . . . 30 . Corruption Blocked 2 | . . . . . . . . . . . . . 2 . . . . Effects 347 | . . . . 7 . 14 6 106 21 21 6 . 51 62 22 28 3 Message Errors 88 | . . . . 1 . 3 2 29 5 4 1 . 8 22 3 9 1 Matter Fused 82 | . . . . 1 . 4 1 29 7 4 3 . 13 15 2 3 . Heat Flow Errors 50 | . . . . 1 . 2 . 17 3 3 . . 9 9 2 4 . Energy Discharges 48 | . . . . 1 . 3 2 13 3 5 1 . 7 5 6 1 1 Parts Rejected 3 | . . . . . . . . . . . . . . 2 . 1 . Parts Fused 2 | . . . . . . . . . . . . . 1 . . 1 . Data Loss (minor) 44 | . . . . 3 . 1 1 11 3 3 1 . 7 6 5 3 . Data Loss (major) 14 | . . . . . . 1 . 3 . 1 . . . 3 3 2 1 Misfires 5 | . . . . . . . . . . . . . 3 . . 2 . Alerts 7 | . . . . . . . . 2 . 1 . . 2 . 1 1 . Misdirections 4 | . . . . . . . . 2 . . . . 1 . . 1 . Overload Shots . | . . . . . . . . . . . . . . . . . . Overflow Damage 5136 | . 97 5 254 1406 757 450 . 863 . 6 . 35 589 406 34 92 142 Projectiles 12 | . . . . . . . . . . . . . 9 . . 3 . Explosions 65 | . . . 1 . 14 4 . . . 6 . 35 5 . . . . Melee 5059 | . 97 5 253 1406 743 446 . 863 . . . . 575 406 34 89 142 Knockbacks 48 | . . 3 5 6 9 1 . 8 . . . . 10 3 . . 3 Impact 39 | . . . 1 6 9 1 . 8 . . . . 9 3 . . 2 Kinetic 6 | . . 2 4 . . . . . . . . . . . . . . Secondary 3 | . . 1 . . . . . . . . . . 1 . . . 1 Self-Inflicted Damage 232 | . 24 . . . 73 . 15 . . 120 . . . . . . . Shots 7 | . 1 . . . 2 . 1 . . 3 . . . . . . . Rammed 1 | . . . . . . . . . . . . . . . . . 1 Targets Rammed 22 | . 1 . 8 1 2 3 . 1 . . . . 2 . . . 4 Kicked 21 | . 1 . 8 1 2 3 . 1 . . . . 2 . . . 3 Crushed . | . . . . . . . . . . . . . . . . . . Highest Temperature 441 | 27 36 9 219 441 120 132 18 270 270 243 . 7 218 268 195 227 13 Average Temperature 79 | 11 15 4 51 136 36 68 4 108 112 85 . 4 86 116 92 83 10 Received Heat Transfer 3807 | . 138 162 570 477 909 150 18 337 . 36 . 60 163 202 72 21 492 Siege Activations . | . . . . . . . . . . . . . . . . . . Robots Corrupted . | . . . . . . . . . . . . . . . . . . Combat Hostiles . | . . . . . . . . . . . . . . . . . . Parts Fried 57 | . . . 8 14 8 1 . 9 . . . . 6 7 . . 4 Impact Corruptions 140 | . . . 8 40 25 6 . 22 . . . . 19 12 . . 8 Robots Melted . | . . . . . . . . . . . . . . . . . . Combat Hostiles . | . . . . . . . . . . . . . . . . . . Parts Melted 6 | 2 . . 3 . . . . . . . . . 1 . . . . Heat Transferred 2543 | 185 185 . 914 . . . . . . . . . . 223 . 1036 . Parts Sabotaged . | . . . . . . . . . . . . . . . . . . Parts Stolen . | . . . . . . . . . . . . . . . . . . Parts Stripped . | . . . . . . . . . . . . . . . . . . Power Chain Reactions . | . . . . . . . . . . . . . . . . . . Missiles Intercepted . | . . . . . . . . . . . . . . . . . . Alert | -11 -10 -10 -9 -9 -8 -7 -7 -7 -7 -7 -7 -6 -6 -6 -6 -6 -6 ------- Run | Jun Mat Min Mat Sto Mat Fac Was Fac Low Low Zio Pro Fac Ext Cet Arc Hub Peak Influence 650 | 15 275 65 535 266 650 457 185 461 . . . . 571 372 487 281 362 Initial 295 | . 9 34 . 225 83 295 115 119 . . . . . 190 149 114 3 Average 221 | 9 116 22 209 158 279 314 161 284 . . . . 244 254 323 171 202 Maximum Alert Level 2 | . 1 . 2 1 2 2 . 2 . . . . 2 1 2 1 1 Low Security (%) 45 | 100 88 100 56 71 32 6 100 10 . . . . 47 28 9 58 57 Level 1 41 | . 11 . 23 28 38 71 . 82 . . . . 26 71 47 41 42 Level 2 13 | . . . 20 . 29 21 . 6 . . . . 25 . 42 . . Level 3 . | . . . . . . . . . . . . . . . . . . Level 4 . | . . . . . . . . . . . . . . . . . . Level 5 . | . . . . . . . . . . . . . . . . . . High Security . | . . . . . . . . . . . . . . . . . . Max Security . | . . . . . . . . . . . . . . . . . . Squads Dispatched 53 | . 2 . 3 3 9 4 . 15 . 1 . . 10 1 . . 5 Investigation 20 | . . . 1 2 5 1 . 5 . . . . 2 1 . . 3 Extermination 11 | . . . . . . 2 . 4 . . . . 5 . . . . Reinforcement 13 | . 2 . 2 1 . 1 . 3 . . . . 2 . . . 2 Assault 6 | . . . . . 1 . . 3 . 1 . . 1 . . . . Garrison 3 | . . . . . 3 . . . . . . . . . . . . Intercept . | . . . . . . . . . . . . . . . . . . Searches Triggered . | . . . . . . . . . . . . . . . . . . Construction Impeded 1 | . . . . . . . . . . . . . 1 . . . . Haulers Reinforced 2 | . . . . . . 1 . . . . . . . . . . 1 Active Scanning Responses . | . . . . . . . . . . . . . . . . . . Cargo Convoy Interrupts 1 | . . . . . . . . . . . . . 1 . . . . Stealth | -11 -10 -10 -9 -9 -8 -7 -7 -7 -7 -7 -7 -6 -6 -6 -6 -6 -6 --------- Run | Jun Mat Min Mat Sto Mat Fac Was Fac Low Low Zio Pro Fac Ext Cet Arc Hub Distress Signals 27 | . 6 . 7 5 . 1 . 2 . . . . 2 2 2 . . Communications Jammed . | . . . . . . . . . . . . . . . . . . Distress Signals . | . . . . . . . . . . . . . . . . . . Times Spotted 447 | . 29 4 43 31 64 29 6 44 . 7 . 5 58 25 15 55 32 Peak Tracking Total 15 | . 4 2 4 4 5 4 5 7 . 7 . 4 8 5 5 2 15 Tactical Retreats 46 | . 6 1 1 6 13 4 . 3 . 2 . . 9 . . . 1 Traps | -11 -10 -10 -9 -9 -8 -7 -7 -7 -7 -7 -7 -6 -6 -6 -6 -6 -6 ------- Run | Jun Mat Min Mat Sto Mat Fac Was Fac Low Low Zio Pro Fac Ext Cet Arc Hub Traps Triggered 13 | . 1 . . 1 1 3 . 4 . . . . 2 1 . . . Indirectly . | . . . . . . . . . . . . . . . . . . Trap Hack Attempts . | . . . . . . . . . . . . . . . . . . Triggered . | . . . . . . . . . . . . . . . . . . Disarmed . | . . . . . . . . . . . . . . . . . . Reprogrammed 3 | . . . . . 3 . . . . . . . . . . . . Reused 3 | . . . . . 3 . . . . . . . . . . . . Traps Extracted . | . . . . . . . . . . . . . . . . . . Installed . | . . . . . . . . . . . . . . . . . . Triggered 9 | . . . . 3 4 1 . . . . . . 1 . . . . Machines | -11 -10 -10 -9 -9 -8 -7 -7 -7 -7 -7 -7 -6 -6 -6 -6 -6 -6 ---------- Run | Jun Mat Min Mat Sto Mat Fac Was Fac Low Low Zio Pro Fac Ext Cet Arc Hub Machines Disabled 14 | . . . 2 2 1 . . 1 . 2 . . 1 . 2 3 . Max in Single Turn 2 | . . . 1 1 1 . . 1 . 2 . . 1 . . 1 . Garrison Access 5 | . . . . 1 1 1 . 1 . . . . . . . . 1 Network Hub 2 | . . . . . . . . . . . . . . . . . 2 Machines Repaired 2 | . . . . . . . . . . . . . . . . . 2 Machines Sabotaged . | . . . . . . . . . . . . . . . . . . Overloaded Fab Kills . | . . . . . . . . . . . . . . . . . . Hacking | -11 -10 -10 -9 -9 -8 -7 -7 -7 -7 -7 -7 -6 -6 -6 -6 -6 -6 --------- Run | Jun Mat Min Mat Sto Mat Fac Was Fac Low Low Zio Pro Fac Ext Cet Arc Hub Machines Accessed 98 | . 5 . 13 11 15 13 . 21 1 . 1 . 7 1 2 . 8 Terminals 65 | . 5 . 9 9 11 9 . 11 . . . . 2 . 2 . 7 Fabricators 6 | . . . . . . 1 . 3 . . . . 2 . . . . Repair Stations 11 | . . . 2 1 2 1 . 2 . . . . 2 1 . . . Recycling Units 5 | . . . 2 . 1 1 . 1 . . . . . . . . . Scanalyzers 3 | . . . . . . . . 2 . . . . 1 . . . . Garrison Access 6 | . . . . 1 1 1 . 2 . . . . . . . . 1 Total Hacks 270 | . 16 . 38 20 61 24 . 56 1 . 5 . 18 3 4 . 24 Successful 156 | . 8 . 21 11 34 11 . 34 1 . 5 . 14 2 1 . 14 Failed 112 | . 8 . 16 9 26 13 . 22 . . . . 4 1 3 . 10 Catastrophic 20 | . . . 1 4 5 5 . 3 . . . . . . 1 . 1 Database Lockouts 2 | . . . 1 . 1 . . . . . . . . . . . . Manual 116 | . 14 . 23 3 27 7 . 23 . . 1 . 2 . 3 . 13 Terminals 190 | . 16 . 28 17 48 18 . 33 . . . . 4 . 4 . 22 Fabricators 12 | . . . . . . 2 . 5 . . . . 5 . . . . Repair Stations 29 | . . . 5 2 9 2 . 5 . . . . 3 3 . . . Recycling Units 13 | . . . 5 . 3 1 . 4 . . . . . . . . . Scanalyzers 10 | . . . . . . . . 4 . . . . 6 . . . . Garrison Access 10 | . . . . 1 1 1 . 5 . . . . . . . . 2 Terminal Hacks 75 | . 5 . 9 7 15 6 . 14 1 . 5 . 2 . 1 . 10 Record 1 | . . . . . . . . . . . . . . . 1 . . Part Schematic 8 | . . . . 1 . . . 2 . . 5 . . . . . . Robot Analysis 10 | . 3 . 4 . 1 . . 2 . . . . . . . . . Prototype ID Bank 5 | . . . 1 1 2 . . 1 . . . . . . . . . Open Door 2 | . . . . 1 . . . . 1 . . . . . . . . Level Access Points 2 | . . . . . . 1 . . . . . . . . . . 1 Branch Access Points 4 | . . . . . 1 1 . 1 . . . . 1 . . . . Terminal Index 6 | . . . 1 . 1 1 . 1 . . . . 1 . . . 1 Garrison Index 2 | . . . . . . 1 . 1 . . . . . . . . . Alert Level 6 | . . . 1 1 1 . . 1 . . . . . . . . 2 Unreport Threat 6 | . . . . 1 2 1 . 1 . . . . . . . . 1 Locate Traps 1 | . 1 . . . . . . . . . . . . . . . . Reprogram Traps 1 | . . . . . 1 . . . . . . . . . . . . Dispatch Records 2 | . . . . . 1 . . . . . . . . . . . 1 Patrol Status 3 | . 1 . . . 1 . . 1 . . . . . . . . . Recall Investigation 1 | . . . . . 1 . . . . . . . . . . . . Recall Reinforcements 1 | . . . . . . . . . . . . . . . . . 1 Hauler Manifests 5 | . . . 1 1 1 . . 1 . . . . . . . . 1 Registered Components 3 | . . . . . 1 1 . 1 . . . . . . . . . Zone Layout 6 | . . . 1 1 1 . . 1 . . . . . . . . 2 Fabricator Hacks 10 | . . . . . . 1 . 4 . . . . 5 . . . . Network Status 2 | . . . . . . 1 . . . . . . 1 . . . . Load Schematic 4 | . . . . . . . . 2 . . . . 2 . . . . Build 4 | . . . . . . . . 2 . . . . 2 . . . . Repair Station Hacks 22 | . . . 4 2 7 1 . 4 . . . . 2 2 . . . Scan Component 12 | . . . 2 1 4 1 . 2 . . . . 1 1 . . . Repair 10 | . . . 2 1 3 . . 2 . . . . 1 1 . . . Recycling Unit Hacks 6 | . . . 2 . 1 1 . 2 . . . . . . . . . Retrieve Components 6 | . . . 2 . 1 1 . 2 . . . . . . . . . Scanalyzer 7 | . . . . . . . . 2 . . . . 5 . . . . Insert Component 3 | . . . . . . . . 1 . . . . 2 . . . . Analyze 4 | . . . . . . . . 1 . . . . 3 . . . . Garrison Access Hacks 4 | . . . . 1 1 1 . . . . . . . . . . 1 Seal Access 4 | . . . . 1 1 1 . . . . . . . . . . 1 Unauthorized Hacks 32 | . 3 . 6 1 10 1 . 8 . . . . . . . . 3 Terminals 27 | . 3 . 4 1 9 1 . 6 . . . . . . . . 3 Assimilate 3 | . . . . . 2 . . 1 . . . . . . . . . Botnet 19 | . 3 . 4 1 6 1 . 4 . . . . . . . . . Operators 2 | . . . . . 1 . . 1 . . . . . . . . . Sabotage 3 | . . . . . . . . . . . . . . . . . 3 Fabricators . | . . . . . . . . . . . . . . . . . . Repair Stations 1 | . . . . . . . . 1 . . . . . . . . . Mechanics 1 | . . . . . . . . 1 . . . . . . . . . Recycling Units 4 | . . . 2 . 1 . . 1 . . . . . . . . . Recyclers 3 | . . . 1 . 1 . . 1 . . . . . . . . . Mask 1 | . . . 1 . . . . . . . . . . . . . . Scanalyzers . | . . . . . . . . . . . . . . . . . . Garrison Access . | . . . . . . . . . . . . . . . . . . Data Cores Recovered . | . . . . . . . . . . . . . . . . . . Used . | . . . . . . . . . . . . . . . . . . Hacking Detections 85 | . 5 . 12 9 13 11 . 21 . . . . 6 1 2 . 5 Full Trace Events 12 | . . . 1 2 3 1 . 3 . . . . 2 . . . . Feedback Events 2 | . . . . 1 . 1 . . . . . . . . . . . Corruption 2 | . . . . 1 . 1 . . . . . . . . . . . Feedback Blocked . | . . . . . . . . . . . . . . . . . . Robot Schematics Acquired . | . . . . . . . . . . . . . . . . . . Robots Built . | . . . . . . . . . . . . . . . . . . Authchips . | . . . . . . . . . . . . . . . . . . Time . | . . . . . . . . . . . . . . . . . . Total Robot Build Rating . | . . . . . . . . . . . . . . . . . . Part Schematics Acquired 11 | . . . . 1 . . . 3 . . 5 . 2 . . . . Parts Built 4 | . . . . . . . . 2 . . . . 2 . . . . Authchips 1 | . . . . . . . . . . . . . 1 . . . . Time 332 | . . . . . . . . 190 . . . . 142 . . . . Total Part Build Rating 20 | . . . . . . . . 10 . . . . 10 . . . . Parts Repaired 10 | . . . 2 1 3 . . 2 . . . . 1 1 . . . Time 370 | . . . 58 38 92 . . 94 . . . . 38 50 . . . Parts Recycled . | . . . . . . . . . . . . . . . . . . Recycled Matter . | . . . . . . . . . . . . . . . . . . Retrieved Matter . | . . . . . . . . . . . . . . . . . . Retrieved Components 26 | . . . 14 . 2 10 . . . . . . . . . . . Parts Scanalyzed 3 | . . . . . . . . 1 . . . . 2 . . . . Part Schematics Acquired 3 | . . . . . . . . 1 . . . . 2 . . . . Parts Damaged 1 | . . . . . . . . . . . . . 1 . . . . Bothacking | -11 -10 -10 -9 -9 -8 -7 -7 -7 -7 -7 -7 -6 -6 -6 -6 -6 -6 ------------ Run | Jun Mat Min Mat Sto Mat Fac Was Fac Low Low Zio Pro Fac Ext Cet Arc Hub Used RIF Installer . | . . . . . . . . . . . . . . . . . . Robots Hacked . | . . . . . . . . . . . . . . . . . . Non-combat . | . . . . . . . . . . . . . . . . . . Combat . | . . . . . . . . . . . . . . . . . . Robot Hacks Applied . | . . . . . . . . . . . . . . . . . . Relay Couplers Released 3 | . . . . . . . . . . . . . 3 . . . . Machine Destruction 3 | . . . . . . . . . . . . . 3 . . . . Fabnet Peak Effective % . | . . . . . . . . . . . . . . . . . . Robots Rewired 11 | . . . . . . . . . . . . . . 11 . . . Allies Hacked . | . . . . . . . . . . . . . . . . . . Hacks Repelled . | . . . . . . . . . . . . . . . . . . Allies | -11 -10 -10 -9 -9 -8 -7 -7 -7 -7 -7 -7 -6 -6 -6 -6 -6 -6 -------- Run | Jun Mat Min Mat Sto Mat Fac Was Fac Low Low Zio Pro Fac Ext Cet Arc Hub Total Allies 28 | . . . . . 2 . 1 . . . . . 1 22 2 . . Largest Group 9 | . . . . . 1 . 1 . . . . . 1 9 9 2 1 Highest-Rated Group 450 | . . . . . 10 . 31 . . . . . 10 409 450 221 96 Highest-Rated Ally 159 | . . . . . 10 . 31 . . . . . 10 159 159 125 96 Total Orders 33 | . . . . 3 . . . . . . 1 . 9 18 2 . . STAY 3 | . . . . . . . . . . . . . . 3 . . . FOLLOW 3 | . . . . . . . . . . . . . . 3 . . . EXPLORE 3 | . . . . 3 . . . . . . . . . . . . . RETURN 24 | . . . . . . . . . . . 1 . 9 12 2 . . Ally Attacks 276 | . . . . . . . 31 . . . . . . 143 74 8 20 Total Damage 6398 | . . . . . . . 529 . . . . . . 2660 2155 369 685 Kills 52 | . . . . . . . 1 . . . . . . 22 17 3 9 Allies Corrupted 2 | . . . . . 1 . . . . . . . . 1 . . . Allies Melted . | . . . . . . . . . . . . . . . . . . Intel | -11 -10 -10 -9 -9 -8 -7 -7 -7 -7 -7 -7 -6 -6 -6 -6 -6 -6 ------- Run | Jun Mat Min Mat Sto Mat Fac Was Fac Low Low Zio Pro Fac Ext Cet Arc Hub Robot Analysis Total 10 | . 3 . 4 . 1 . . 2 . . . . . . . . . Derelict Logs Recovered 10 | . . 2 . . . . . . 2 2 2 2 . . . . . Drone Launches 44 | . . . . 20 . . . . . . 1 . 9 12 2 . . Drone Recoveries 28 | . . . . 4 . . . . . . 1 . 9 12 2 . . Exploration | -11 -10 -10 -9 -9 -8 -7 -7 -7 -7 -7 -7 -6 -6 -6 -6 -6 -6 ------------- Run | Jun Mat Min Mat Sto Mat Fac Was Fac Low Low Zio Pro Fac Ext Cet Arc Hub Turns Passed 24273 | 77 1344 1346 2792 2068 2510 1920 169 2859 556 624 1503 499 2601 1454 413 902 636 Spaces Moved 12750 | 31 607 607 1094 715 1038 1103 101 1666 435 438 1161 350 1479 825 281 440 379 Core 2 | . 2 . . . . . . . . . . . . . . . . Treads . | . . . . . . . . . . . . . . . . . . Legs 12748 | 31 605 607 1094 715 1038 1103 101 1666 435 438 1161 350 1479 825 281 440 379 Wheels . | . . . . . . . . . . . . . . . . . . Hover . | . . . . . . . . . . . . . . . . . . Flight . | . . . . . . . . . . . . . . . . . . Fastest Speed 120 | 120 120 190 190 196 127 126 126 126 127 127 127 127 124 120 120 120 120 Average Speed 144 | 120 170 190 192 199 159 133 126 127 127 127 127 127 130 120 120 120 120 Slowest Speed 260 | 120 260 190 200 200 197 200 126 130 128 197 127 197 194 190 190 120 120 Overloaded Moves . | . . . . . . . . . . . . . . . . . . Propulsion Burnouts . | . . . . . . . . . . . . . . . . . . Robots Hopped . | . . . . . . . . . . . . . . . . . . Cave-ins Triggered . | . . . . . . . . . . . . . . . . . . Exploration Rate (%) 70 | 4 95 98 92 95 85 33 79 52 67 62 87 64 47 87 84 89 45 Regions Visited 17 Branch Regions 10 Pre-discovered Areas 2 | . . . . . . . . . . 1 1 . . . . . . Known Exits Taken 5 | . . . . 1 . . . 1 . . . 1 1 1 . . . Unknown Exits Taken 10 | 1 1 1 1 . 1 . . . 1 1 1 . . . 1 1 . Scrap Searched 13 | . . 1 . . . . . . 2 2 5 3 . . . . . Spaces Dug 174 | . 8 . 12 21 24 20 . 31 . 11 . . 34 2 . . 11 Terrain Destroyed 560 | . 12 . 31 22 76 37 158 31 . 88 . 13 75 2 . 4 11 Melee 141 | . 6 . 5 20 19 20 . 31 . . . . 27 2 . . 11 Projectile 41 | . . . 7 2 12 . . . . . . . 16 . . 4 . AOE 378 | . 6 . 19 . 45 17 158 . . 88 . 13 32 . . . . Terrain Rammed . | . . . . . . . . . . . . . . . . . . Walls Destroyed . | . . . . . . . . . . . . . . . . . . Machines Disabled . | . . . . . . . . . . . . . . . . . . Actions | -11 -10 -10 -9 -9 -8 -7 -7 -7 -7 -7 -7 -6 -6 -6 -6 -6 -6 --------- Run | Jun Mat Min Mat Sto Mat Fac Was Fac Low Low Zio Pro Fac Ext Cet Arc Hub Total 16863 | 58 768 769 1519 1145 1606 1380 122 2228 437 489 1186 393 2008 1224 342 670 519 Wait 2176 | 21 56 133 186 270 340 94 . 371 . 38 6 22 252 213 14 101 59 Move 12734 | 30 606 606 1093 714 1037 1103 100 1665 434 437 1160 349 1478 824 280 439 379 Hop . | . . . . . . . . . . . . . . . . . . Pick Up 154 | . 11 1 27 13 14 19 4 11 . . 2 3 17 5 5 17 5 Fast Attach 77 | 1 5 2 12 4 2 4 . 9 1 1 3 . 7 7 6 9 4 Attach 77 | . 3 3 9 4 12 6 3 8 . . . 2 15 . 1 6 5 Detach 37 | . 2 . 3 1 1 3 . 2 . . . . 10 1 1 5 8 Swap 316 | . 4 1 39 21 52 45 . 32 1 5 4 8 47 35 7 4 11 Drop 167 | . 5 1 23 12 8 22 4 14 1 1 7 3 12 13 12 22 7 Fire 249 | 6 9 14 81 2 19 2 11 . . 7 . 2 19 16 . 61 . Melee 763 | . 66 8 38 96 119 79 . 115 . . 4 4 149 26 16 6 37 Ram 1 | . . . . . . . . . . . . . . . . . 1 Kick 21 | . 1 . 8 1 2 3 . 1 . . . . 2 . . . 3 Crush . | . . . . . . . . . . . . . . . . . . Escape Stasis . | . . . . . . . . . . . . . . . . . . Rewire 84 | . . . . . . . . . . . . . . 84 . . . Trap . | . . . . . . . . . . . . . . . . . . Miscellaneous 7 | . . . . 7 . . . . . . . . . . . . . Route ------- -11/Junkyard -10/Materials (discovered 5 exits: *Mat x3 / [*Min x2]) -10/Mines (discovered 2 exits: *Mat x2) -9/Materials (discovered 5 exits: *Mat x3 / [*Min] / *Sto) -9/Storage -8/Materials (discovered 2 exits: *Fac x2) -7/Factory (discovered 6 exits: *Fac x4 / Low x2) -7/Waste -7/Factory (discovered 4 exits: *Fac x2 / *Low x2) -7/Lower Caves -7/Lower Caves -7/Zion -6/Proximity Caves -6/Factory (discovered 8 exits: Fac x4 / *Low x2 / *Ext x2) -6/Extension (discovered 3 exits: *Fac x2 / *Cet) -6/Cetus (discovered 2 exits: *Fac / *Arc) -6/Archives (discovered 3 exits: *Fac / *Hub x2) -6/Hub_04(d) (discovered 4 exits: *Fac x4) History --------- Turn | Location | Event 1 | -11/Junkyard | Discovered new exit (range 3) 78 | -11/Junkyard | Entered Materials 315 | -10/Materials | Discovered new exit (range 5) 318 | -10/Materials | Build established: Mutant 388 | -10/Materials | Discovered new exit (range 13) 672 | -10/Materials | Core integrity fell below 50% 707 | -10/Materials | Discovered new exit (range 14) 710 | -10/Materials | Lost 4 parts (1p2n1w) 911 | -10/Materials | Discovered new exit (range 7) 1075 | -10/Materials | Discovered new exit (range 6) 1422 | -10/Materials | Entered Mines 1511 | -10/Mines | Learned location of 1 exit from Materials 1525 | -10/Mines | Discovered new exit (range 5) 1679 | -10/Mines | Learned Materials stockpile data 2135 | -10/Mines | A weapon hastily lodged in a ceiling crevice suddenly fell to the ground 2186 | -10/Mines | Discovered new exit (range 7) 2488 | -10/Mines | Core integrity fell below 20% 2522 | -10/Mines | Lost 3 parts (1p1n1w) 2768 | -10/Mines | Entered Materials 2768 | -9/Materials | Evolved 2 slots: Propulsion x1, Utility x1 2769 | -9/Materials | Identified exit to Materials 3083 | -9/Materials | Lost 3 parts (1n2w) 3355 | -9/Materials | Discovered new exit (range 4) 3711 | -9/Materials | Repaired Imp. Aluminum Leg 3974 | -9/Materials | Repaired Lgt. Armor Plating 4115 | -9/Materials | Discovered exit to Materials (range 11) 4793 | -9/Materials | Discovered exit to Materials (range 3) 5107 | -9/Materials | Central database locked down 5230 | -9/Materials | Discovered new exit (range 11) 5560 | -9/Materials | Entered Storage 5929 | -9/Storage | Core integrity fell below 50% 6290 | -9/Storage | Discovered exit to Materials (range 5) 7136 | -9/Storage | Repaired Titanium Leg 7628 | -9/Storage | Entered Materials 7628 | -8/Materials | Evolved 2 slots: Propulsion x1, Utility x1 7815 | -8/Materials | Garrison activated, responded to threat 7959 | -8/Materials | Central database locked down 8237 | -8/Materials | Discovered new exit (range 11) 8677 | -8/Materials | Repaired Titanium Leg 8716 | -8/Materials | Repaired Titanium Leg 9116 | -8/Materials | Discovered new exit (range 15) 9257 | -8/Materials | Repaired Med. Armor Plating 10028 | -8/Materials | First assault squad dispatched 10138 | -8/Materials | Entered Factory 10138 | -7/Factory | Evolved 2 slots: Propulsion x1, Utility x1 10315 | -7/Factory | Discovered new exit (range 13) 10948 | -7/Factory | Identified exit to Factory 11060 | -7/Factory | Identified exit to Lower Caves 11243 | -7/Factory | Build established: Hacker-Mutant 12058 | -7/Factory | Sucked down chute 12058 | -7/Factory | Entered Waste 12059 | -7/Waste | Met a frightened Derelict 12073 | -7/Waste | EMP discharged 12087 | -7/Waste | Spotted C-40 Crusher 12088 | -7/Waste | Spotted C-40 Crusher 12088 | -7/Waste | Spotted C-40 Crusher 12093 | -7/Waste | Spotted C-40 Crusher 12096 | -7/Waste | Destroyed C-40 Crusher 12104 | -7/Waste | Spotted C-40 Crusher 12105 | -7/Waste | Destroyed C-40 Crusher 12105 | -7/Waste | Destroyed C-40 Crusher 12111 | -7/Waste | Allies destroyed C-40 Crusher 12120 | -7/Waste | Destroyed C-40 Crusher 12123 | -7/Waste | Spotted C-40 Crusher 12151 | -7/Waste | Destroyed C-40 Crusher 12173 | -7/Waste | EMP discharged 12173 | -7/Waste | System corruption reached 10% 12200 | -7/Waste | Discovered new exit (range 16) 12227 | -7/Waste | Entered Factory 12697 | -7/Factory | Build established: Mutant 12941 | -7/Factory | Fabricated Imp. Heavy Armor Plating? 13454 | -7/Factory | Fabricated Imp. Heavy Armor Plating (x1) 13678 | -7/Factory | Discovered exit to Factory (range 5) 14003 | -7/Factory | Repaired Imp. Heavy Armor Plating 14013 | -7/Factory | Repaired Imp. Carbon-fiber Leg 14366 | -7/Factory | Discovered exit to Factory (range 13) 15027 | -7/Factory | First assault squad dispatched 15086 | -7/Factory | Entered Lower Caves 15255 | -7/Lower Caves | Learned Factory garrison access intel 15446 | -7/Lower Caves | Discovered new exit (range 13) 15642 | -7/Lower Caves | Entered another Lower Caves area 15813 | -7/Lower Caves | Learned location of Zion (-7) 15837 | -7/Lower Caves | Encountered a Warlord checkpoint 15998 | -7/Lower Caves | Attracted the attention of an 0b10 outpost 16034 | -7/Lower Caves | Destroyed 9 combat bots 16073 | -7/Lower Caves | Learned Factory stockpile data 16084 | -7/Lower Caves | Discovered new exit (range 12) 16266 | -7/Lower Caves | Entered Zion 16375 | -7/Zion | Discovered new exit (range 13) 16382 | -7/Zion | Found CR-A16's Pointy Stick 16471 | -7/Zion | System corruption cleaned by Quarantine Array 16702 | -7/Zion | Given A8's code to call for help 16705 | -7/Zion | Learned Factory fabricator intel 16922 | -7/Zion | Given the Hacking Drone Bay 17220 | -7/Zion | Received a visual enhancement algorithm 17648 | -7/Zion | Found Prototype Device 17649 | -7/Zion | Identified Hacking Drone Bay 17769 | -7/Zion | Entered Proximity Caves 18080 | -6/Proximity Caves | Spotted B-75 Beast 18089 | -6/Proximity Caves | Received a Behemoth hack from an annoying Tinkerer 18128 | -6/Proximity Caves | Revealed the true nature of CR-A16's Pointy Stick 18130 | -6/Proximity Caves | Destroyed B-75 Beast 18131 | -6/Proximity Caves | Core integrity fell below 50% 18221 | -6/Proximity Caves | Learned Factory stockpile data 18268 | -6/Proximity Caves | Entered Factory 18268 | -6/Factory | Evolved 2 slots: Utility x2 18270 | -6/Factory | Loaded intel: 4 fabricator locations 18271 | -6/Factory | Loaded intel: 3 garrison access locations 18377 | -6/Factory | Fabricated Imp. Heavy Armor Plating (x1) 18406 | -6/Factory | Identified exit to Lower Caves 18406 | -6/Factory | Identified exit to Extension 18677 | -6/Factory | Repaired Titanium Leg 18692 | -6/Factory | Spotted B-75 Beast 19476 | -6/Factory | Cargo convoy interrupted 19697 | -6/Factory | Lost 3 parts (2n1u) 19713 | -6/Factory | System corruption reached 10% 19879 | -6/Factory | Found Prototype Processor 19879 | -6/Factory | Identified Exp. Targeting Computer 19974 | -6/Factory | Identified exit to Factory 20718 | -6/Factory | First assault squad dispatched 20794 | -6/Factory | Fabricated Imp. Heavy Armor Plating (x1) 20869 | -6/Factory | Entered Extension 21023 | -6/Extension | Rescued a captive Derelict 21207 | -6/Extension | Rescued a captive Derelict 21208 | -6/Extension | Rescued a captive Derelict 21224 | -6/Extension | Identified exit to Cetus 21237 | -6/Extension | Build established: Scavenger-Mutant 21265 | -6/Extension | Rescued a captive Derelict 21266 | -6/Extension | Rescued a captive Derelict 21292 | -6/Extension | Rescued a captive Derelict 21455 | -6/Extension | Rescued a captive Derelict 21717 | -6/Extension | Spotted B-75 Beast 21735 | -6/Extension | Allies destroyed B-75 Beast 21735 | -6/Extension | Spotted B-75 Beast 21749 | -6/Extension | Destroyed B-75 Beast 21779 | -6/Extension | Discovered exit to Factory (range 11) 21887 | -6/Extension | Rescued a captive Derelict 22130 | -6/Extension | Repaired Imp. Heavy Armor Plating 22144 | -6/Extension | Rescued a captive Derelict 22195 | -6/Extension | Rescued A7 22272 | -6/Extension | Rescued a captive Derelict 22298 | -6/Extension | Discovered exit to Factory (range 10) 22323 | -6/Extension | Entered Cetus 22323 | -6/Cetus | Accompanied by 9 allies (A7) 22328 | -6/Cetus | Acquired a Cetus Manufacturing Module code from A7 22341 | -6/Cetus | Spotted Cetus Guard 22341 | -6/Cetus | Spotted Cetus Guard 22342 | -6/Cetus | Spotted Cetus Guard 22344 | -6/Cetus | Build established: Commander-Mutant 22345 | -6/Cetus | Spotted Cetus Guard 22352 | -6/Cetus | Allies destroyed Cetus Guard 22358 | -6/Cetus | Allies destroyed Cetus Guard 22358 | -6/Cetus | Allies destroyed Cetus Guard 22362 | -6/Cetus | Allies destroyed Cetus Guard 22469 | -6/Cetus | Started Cetus Manufacturing Module 22486 | -6/Cetus | Escorted A7 to Cetus Mainframe 22494 | -6/Cetus | Manufactured an Enhanced Grunt 22519 | -6/Cetus | Manufactured an Enhanced Grunt 22542 | -6/Cetus | Cetus Manufacturing Module disabled 22584 | -6/Cetus | Discovered new exit (range 15) 22608 | -6/Cetus | Spotted Cetus Guard 22609 | -6/Cetus | Spotted Cetus Guard 22610 | -6/Cetus | Spotted Cetus Guard 22611 | -6/Cetus | Allies destroyed Cetus Guard 22615 | -6/Cetus | Spotted Cetus Guard 22616 | -6/Cetus | Discovered exit to Factory (range 16) 22626 | -6/Cetus | Allies destroyed Cetus Guard 22645 | -6/Cetus | Allies destroyed Cetus Guard 22646 | -6/Cetus | Met Revision 17 22720 | -6/Cetus | Build established: Scavenger-Mutant 22736 | -6/Cetus | Entered Archives 22736 | -6/Archives | Accompanied by 2 allies (A7) 22741 | -6/Archives | Received a hacking code to weaken MAIN.C 22779 | -6/Archives | Unable to access archive contents 22783 | -6/Archives | Discovered new exit (range 15) 22816 | -6/Archives | Discovered exit to Factory (range 16) 22881 | -6/Archives | Discovered new exit (range 14) 23638 | -6/Archives | Entered Hub_04(d) 23638 | -6/Hub_04(d) | Accompanied by 1 ally 23673 | -6/Hub_04(d) | Discovered exit to Factory (range 7) 23749 | -6/Hub_04(d) | Found Prototype Launcher 23749 | -6/Hub_04(d) | Identified Scatter Rocket Array 23752 | -6/Hub_04(d) | Found Scatter Rocket Array 24054 | -6/Hub_04(d) | Spotted B-75 Beast 24062 | -6/Hub_04(d) | Destroyed B-75 Beast 24177 | -6/Hub_04(d) | Network Hub disabled 24189 | -6/Hub_04(d) | Spotted Lightning 24197 | -6/Hub_04(d) | Spotted Lightning 24204 | -6/Hub_04(d) | Spotted Lightning 24246 | -6/Hub_04(d) | Network Hub disabled 24246 | -6/Hub_04(d) | Spotted Lightning 24246 | -6/Hub_04(d) | Spotted Lightning 24255 | -6/Hub_04(d) | Spotted Lightning 24264 | -6/Hub_04(d) | Core integrity fell below 50% 24272 | -6/Hub_04(d) | Core integrity fell below 20% 24274 | -6/Hub_04(d) | Destroyed by Lightning with EMDS Last Messages --------------- 24264_ Kicked G-50 Soldier. 24264_ Penetrated by EMDS Slug. 24266_ Kicked G-50 Soldier. 24266_ EMDS Slug penetrates Wall. 24266_ Arm. Leg destroyed. 24267_ Centrium Medium Armor Plating destroyed. 24267_ Kicked G-50 Soldier. 24267_ Penetrated by EMDS Slug. 24269_ Critical hit (Burn: +37). 24270_ Imp. Carbon-fiber Leg destroyed. 24270_ Slammed into G-50 Soldier. 24270_ EMDS Slug penetrates Wall. 24271_ Penetrated by EMDS Slug. 24271_ Microactuators destroyed. 24271_ Imp. Hacking Suite destroyed. 24271_ Penetrated by EMDS Slug. 24272_ G-50 Soldier system terminally corrupted. 24272_ K-01 Serf collects debris. 24273_ Penetrated by EMDS Slug. [Achievement: I Think I Know What's Going On] Map ----- +----------------------------------------------------+ | ???????????????????????????????????????? | | ???????????????????????????????????????? | | ???????????????????????????????????????? | | ???????????????????????????????????????? | | ???????????????????????????????????????? | | ???????????????????????????????????????? | | ???????????????????????????????????????? | | ???????????????????????????????????????? | | ???????????????????????????????????????? | | ???????????????????????????????????????? | | ???????????????????????????????????????? | | ???????????????????????????????????????? | | ????????????????????#??????????????????? | | ????????????????####"""";??????????????? | | ???????????????? ????????????? | | ???????????????? ???????????? | | ???????????????? ??????????? | | ???????????????? ??????????? | | ???????????????? "?????????? | | ???????????????? "?????????? | | ?????????#?????? " ????????? | | ?????????# ?????#";;;;;;;;;;;; ????????? | | ????????## ????# ; ! ; ????????? | | ????????# #### ; = ; ???????? | | ????????# !=%Yg ; = ; ???????? | | ????????# < k@% g ! ; ? ????? | | ????????# ###gh; ; ???? | | ????????#??????#ghh ; ???? | | ???????????????#=hih ! ; ??? | | ???????????????# ; h ; ???? | | ???????????????# ;#;;;;;;;;;" ??? | | ???????????????# ;#########;"""""""???? | | ???????????????# # " ????? | | ???????????????# # " #??????????? | | ???????????????# # " #??????????? | | ???????????????# / #??????????? | | ???????????????## # #??????????? | | ????????????????# # " """ #??????????? | | ????????????????# # #?########## | | ????????????????# #! #?# | | ??????????####### ##/########?# """ "" | | ??????????# ## #????????# | | ??????????# #######""##+####### | | ??????????# # """"" ## !== | | ??????????# + ""T" " " " " ## !== | | ??????????### " " " " ## == | | ????????????#![= " " " " ## | | | ????????????#[%[ = ## | | ????????????#*#####"########### [ """ "" | | ????????????###??#""######????# | +----------------------------------------------------+ Best States ------------- Heat Dissipation 56 Coolant Potential 65 Energy Generation 25 Energy Capacity 350 Matter Stores 300 Matter Capacity 300 Sight Range 16 Terrain Scan Density 10 ECM Strength 1 Jamming Range 12 Armor Coverage 675 Resistance: TH 10 Melee Speed Boost 20 Evasion (%) 55 Targeting Accuracy 12 Melee Accuracy 8 Core Analysis 6 Offensive Hacking 30 Defensive Hacking 12 Authchip Count 2 Item Schematics ----------------- Transport Network Coupler | -9/Storage | Hacked Imp. Heavy Armor Plating | -7/Factory | Hacked Adv. Hacking Suite | -7/Factory | Scanalyzed Imp. Melee Analysis Suite | -7/Factory | Hacked Riot Gun | -7/Zion | Free Battle Rifle | -7/Zion | Free Battle Cannon | -7/Zion | Free Enh. Flamer | -7/Zion | Free Tactical Coordination Suite | -7/Zion | Free Adv. Melee Analysis Suite | -6/Factory | Scanalyzed Core Analyzer | -6/Factory | Scanalyzed Robot Schematics ------------------ None Fabricated ------------ Imp. Heavy Armor Plating | x1 | -7/Factory Imp. Heavy Armor Plating | x1 | -7/Factory Imp. Heavy Armor Plating | x1 | -6/Factory | Authchip Imp. Heavy Armor Plating | x1 | -6/Factory Alien Tech Used ----------------- None Achievements -------------- I Think I Know What's Going On Main Advantage Project G-00 Revising The Future Challenges ------------ None Game ------ Seed RagnarokNetworkSource Manual? 0 Play Time 04:53:01 Cumulative 75.0 hours Start 2023.11.07 @ 17:10:12 End 2023.11.08 @ 02:23:20 Sessions 2 Manual Loads 0 Difficulty Rogue Special Mode None Game No. 20 Rogue 20 Adventurer 0 Explorer 0 Win Type - Total 4 Types 3/0/1/0/0/0/0/0/0 Lore% 50 Gallery% 59 Achievement% 56 Wizard Run 0 Options --------- ASCII 0 Keyboard 1 Movement Numpad Keybinds 0 Fullscreen 1 Font 12/Terminus Map View 83x54 Tactical HUD 1 Map Filters NONE Filters NONE Steam 0 RUN: ab654617-dc5f-49b6-9121-f58b8b4a60ea